Workbook

Sheet 1.Kansilehti
A28: Viljelijä
A29: Osoite
A31: Puhelin
A32: S-posti
A38: Asiantuntija
B39: ProAgria Pohjois-Suomi ry.
A41: Osoite
A43: Puhelin
A44: S-posti

Sheet 2.Ympäristöluvan tarpeen lasken
B1: Ympäristöluvan tarpeen laskelma
B5: ELÄINSUOJAN JA TURKISTARHAN LUPA- JA TOIMIVALTARAJAN SEKÄ ELÄINSUOJAN
B6: ILMOITUKSENVARAISUUSRAJAN LASKEMISESSA KÄYTETTÄVÄT
B7: ELÄINYKSIKKÖKERTOIMET
B9: Viljelijä
B10: PJ Soronen Oy
B12: Eläinyksiköitä yhteensä | E12: =E23+E30+E35+E42+E54+E63 -> 1616
B14: Eläinlaji | C14: kpl | D14: kerroin | E14: yksiköt
B15: Lypsylehmä | C15: 120 | D15: 10.8 | E15: =C15*D15 -> 1296
B16: Emolehmä | D16: 4.3 | E16: 0
B17: Siitossonni (sonni > 2 v) | D17: 8.1 | E17: =C17*D17 -> 0
B18: Hieho (12–24 kk) | C18: 46 | D18: 4 | E18: =C18*D18 -> 184
B19: Lihanauta (sonni 12–24 kk) | D19: 5.7 | E19: =C19*D19 -> 0
B20: Lehmävasikka 6–12 kk | C20: 24 | D20: 3.4 | E20: =C20*D20 -> 81.6
B21: Sonnivasikka 6–12 kk | D21: 3.4 | E21: 0
B22: Lehmävasikka < 6 kk, sonnivasikka < 6kk | C22: 32 | D22: 1.7 | E22: 54.4
B23: (lypsynavetta yht 540 - 3250 lupa kunnalta) | E23: =SUM(E15:E22) -> 1616
B24: (lihanaudat 570 - 3250 lupa kunnalta) | C24: 0 | E24: =SUM(E16:E22) -> 320
B25: Hevonen yli 2 v | D25: 3.9 | E25: =C25*D25 -> 0
B26: Poni yli 2 v, hevonen 1-2 v (Poni aikuisena 120-140 cm) | D26: 2.8 | E26: =C26*D26 -> 0
B27: Pienponi yli 2 v, poni 1-2 v, hevonen alle 1 v (pienponi: eläimen säkäkorkeus täysikasvuisena <120 cm) | D27: 2 | E27: =C27*D27 -> 0
B28: Pienponi 1-2 v, poni alle 1v (pienponi: eläimen säkäkorkeus täysikasvuisena <120 cm) | D28: 1.2 | E28: =C28*D28 -> 0
B29: Pienponi alle 1 v (pienponi: eläimen säkäkorkeus täysikasvuisena <120 cm) | D29: 0.8 | E29: =C29*D29 -> 0
B30: (yht. yli 234 - lupa kunnalta) | E30: =SUM(E25:E29) -> 0
B31: Lammas ja karitsat sekä pässi | D31: 1.3 | E31: =C31*D31 -> 0
B32: Vuohi ja kilit sekä pukki | D32: 1.3 | E32: =C32*D32 -> 0
B33: Karitsat ja kilit 3-9 kk (Kasvatuksessa, kaksi kasvatuserää vuodessa), sis. yllä oleviin lukuihin
B34: Karitsat ja kilit 6-9 kk (Kasvatuksessa, kaksi kasvatuserää vuodessa), sis. yllä oleviin lukuihin
B35: (yht yli 150 - lupa kunnalta) | E35: =SUM(E31:E34) -> 0
B36: Lihasika (eläinpaikkaa kohti, teuraspaino max 90 kg, jos suurempi käytetään jotilaan emakon arvoja) | D36: 1 | E36: =C36*D36 -> 0
B37: Emakko ja porsaat (Normaali emakkosikala. Porsaat mukana noin 11 viikon ikään asti) | D37: 2.6 | E37: =C37*D37 -> 0
B38: Emakko ja porsaat satelliittisikalassa (Koskee satelliittisikalaa. Lantamäärät emakkopaikkaa kohti, kun emakkopaikassa vähintään kahdeksan porsituskertaa vuodessa. Porsaat huomioidaan noin viiden viikon vieroitusikään asti) | D38: 2.6 | E38: 0
B39: Joutilas emakko | D39: 1.8 | E39: 0
B40: Vierotettu porsas (Porsas välikasvatuksessa, ikävaihe 5-11 vkoa) | D40: 0.24 | E40: 0
B41: Karju (täysikasvuinen) | D41: 1.8 | E41: 0
B42: (yht 260 - 780 lupa kunnalta) | E42: =SUM(E36:E41) -> 0
B43: Broileri (Eläinpaikkaa kohti) | D43: 0.03 | E43: =C43*D43 -> 0
B44: Munituskana | D44: 0.07 | E44: =C44*D44 -> 0
B45: Broileriemo | D45: 0.07 | E45: 0
B46: Kukko | D46: 0.1 | E46: 0
B47: Emokalkkuna | D47: 0.14 | E47: 0
B48: Lihakalkkuna | D48: 0.12 | E48: 0
B49: Kananuorikko | D49: 0.04 | E49: 0
B50: Emoankka, liha-ankka, emohanhi, emofasaani, lihafasaani | D50: 0.07 | E50: 0
B51: Emosorsa, lihasorsa | D51: 0.06 | E51: 0
B52: Viiriäinen, helmikana | D52: 0.04 | E52: 0
B53: Strutsi | D53: 0.9 | E53: 0
B54: (yht 280 - 2100 lupa kunnalta) | E54: =SUM(E43:E53) -> 0
B55: Kaninaaras poikasineen (Kaninaaraan elopaino noin 5 kg. Poikasien lisäksi kaniuros sisältyy naaraan eläinyksikkökertoimeen) | D55: 0.19 | E55: =C55*D55 -> 0
B56: Biisoni | D56: 2.5 | E56: =C56*D56 -> 0
B57: Villisika | D57: 0.9 | E57: 0
B58: Minkki ja hilleri, pentu | E58: 0
B59: Minkki ja hilleri, siitosuros | E59: 0
B60: Kettu ja supikoira, siitosnaaras pentuineen | D60: 0.41 | E60: 0
B61: Kettu ja supikoira, pentu | E61: 0
B62: Kettu ja supikoira, siitosuroa | E62: 0
B63: (yht 280 - 2100 lupa kunnalta) | E63: =SUM(E55:E62) -> 0

Sheet 3.Lietesäiliöt
A2: Viljelijä | B2: ='1.Kansilehti'!B28 -> 0
C4: Lietesäiliö1 | E4: Lietesäiliö2 | G4: Lietesäiliö3 | I4: Lietesäiliö4 | K4: Lietesäiliö5 | M4: Lietesäiliö6 | O4: Lietesäiliö7 | Q4: Lietesäiliö8
D5: Uusi | F5: Uusi | H5: Uusi | J5: Uusi | L5: Uusi | N5: Uusi | P5: Uusi | R5: Uusi
C6: X | D6: Olemassa oleva | E6: x | F6: Olemassa oleva | H6: Olemassa oleva | J6: Olemassa oleva | L6: Olemassa oleva | N6: Olemassa oleva | P6: Olemassa oleva | R6: Olemassa oleva
D7: Tilakeskuksessa | F7: Tilakeskuksessa | H7: Tilakeskuksessa | J7: Tilakeskuksessa | L7: Tilakeskuksessa | N7: Tilakeskuksessa | P7: Tilakeskuksessa | R7: Tilakeskuksessa
A8: Säiliön kokonaistilavuus (m3) | D8: 600 | F8: 3000 | H8: 500 | J8: =ROUNDUP(((J9/2)*(J9/2)*3.14)*J10,-1) -> 0 | L8: =ROUNDUP(((L9/2)*(L9/2)*3.14)*L10,-1) -> 0 | N8: =ROUNDUP(((N9/2)*(N9/2)*3.14)*N10,-1) -> 0 | P8: =ROUNDUP(((P9/2)*(P9/2)*3.14)*P10,-1) -> 0 | R8: =ROUNDUP(((R9/2)*(R9/2)*3.14)*R10,-1) -> 0
A9: Säiliön sisähalkaisja (m) | D9: 17 | F9: 34
A10: Säiliön hyötykorkeus (m) | D10: 2.4 | F10: 3.4 | H10: 1
A11: Säiliön materiaali | D11: BETONI | F11: BETONI | H11: BETONI
A12: Onko katetta, jos niin minkälainen? | D12: Luonnollinen kuorettuma | E12: x | F12: Luonnollinen kuorettuma | H12: Luonnollinen kuorettuma | J12: Luonnollinen kuorettuma | L12: Luonnollinen kuorettuma | N12: Luonnollinen kuorettuma | P12: Luonnollinen kuorettuma | R12: Luonnollinen kuorettuma
D13: Turve | F13: Turve | H13: Turve | J13: Turve | L13: Turve | N13: Turve | P13: Turve | R13: Turve
D14: Styrox | F14: Styrox | H14: Styrox | J14: Styrox | L14: Styrox | N14: Styrox | P14: Styrox | R14: Styrox
D15: EPS-rae | F15: EPS-rae | H15: EPS-rae | J15: EPS-rae | L15: EPS-rae | N15: EPS-rae | P15: EPS-rae | R15: EPS-rae
D16: Betoni | F16: Betoni | H16: Betoni | J16: Betoni | L16: Betoni | N16: Betoni | P16: Betoni | R16: Betoni
C17: x | D17: Pelti | F17: Pelti | G17: x | H17: Pelti | J17: Pelti | L17: Pelti | N17: Pelti | P17: Pelti | R17: Pelti
D18: Pressu | F18: Pressu | H18: Pressu | J18: Pressu | L18: Pressu | N18: Pressu | P18: Pressu | R18: Pressu
A19: Kuormausalueen materiaali ja pinta-ala m2 | D19: BETONI, 125 M2
A20: Täyttötapa | D20: Lietekuilusta | F20: Lietekuilusta | H20: Lietekuilusta | J20: Lietekuilusta | L20: Lietekuilusta | N20: Lietekuilusta | P20: Lietekuilusta | R20: Lietekuilusta
C21: X | D21: Pumppu/pudotuskaivosta | F21: Pumppu/pudotuskaivosta | H21: Pumppu/pudotuskaivosta | J21: Pumppu/pudotuskaivosta | L21: Pumppu/pudotuskaivosta | N21: Pumppu/pudotuskaivosta | P21: Pumppu/pudotuskaivosta | R21: Pumppu/pudotuskaivosta
D22: Lietesäiliön yläosaan | F22: Lietesäiliön yläosaan | H22: Lietesäiliön yläosaan | J22: Lietesäiliön yläosaan | L22: Lietesäiliön yläosaan | N22: Lietesäiliön yläosaan | P22: Lietesäiliön yläosaan | R22: Lietesäiliön yläosaan
C23: x | D23: Lietesäiliön alaosaan | F23: Lietesäiliön alaosaan | H23: Lietesäiliön alaosaan | J23: Lietesäiliön alaosaan | L23: Lietesäiliön alaosaan | N23: Lietesäiliön alaosaan | P23: Lietesäiliön alaosaan | R23: Lietesäiliön alaosaan
A25: Sadeveden määrä (m3) / 0,3 m korkeutta | D25: =IF(C51=0,((D26*D26)*D27)*0.3,"Ei sadevettä - katettu") -> Ei sadevettä - katettu | F25: =IF(E51=0,((F26*F26)*F27)*0.3,"Ei sadevettä - katettu") -> 272.238 | H25: =IF(G51=0,((H26*H26)*H27)*0.3,"Ei sadevettä - katettu") -> Ei sadevettä - katettu | J25: =IF(I51=0,((J26*J26)*J27)*0.3,"Ei sadevettä - katettu") -> 0 | L25: =IF(K51=0,((L26*L26)*L27)*0.3,"Ei sadevettä - katettu") -> 0 | N25: =IF(M51=0,((N26*N26)*N27)*0.3,"Ei sadevettä - katettu") -> 0 | P25: =IF(O51=0,((P26*P26)*P27)*0.3,"Ei sadevettä - katettu") -> 0 | R25: =IF(Q51=0,((R26*R26)*R27)*0.3,"Ei sadevettä - katettu") -> 0
B26: säde | D26: =IF(D9>1,D9/2,0) -> 8.5 | F26: =IF(F9>1,F9/2,0) -> 17 | H26: 0 | J26: 0 | L26: 0 | N26: 0 | P26: 0 | R26: 0
B27: Pii | D27: 3.14 | F27: 3.14 | H27: 3.14 | J27: 3.14 | L27: 3.14 | N27: 3.14 | P27: 3.14 | R27: 3.14
A31: Yhteensä sadeveden määrä (m3) | D31: =SUM(D25:R25) -> 272.238
A33: Olemasssa oleva lietsöiliö tilavuus (m3) | D33: =SUM(D8,F8,H8,J8,L8,N8,P8,R8) -> 4100
C43: =C12 -> 0 | D43: =IF(C43="x",1) -> FALSE | E43: =E12 -> x | F43: =IF(E43="x",1) -> 1 | G43: =G12 -> 0 | H43: =IF(G43="x",1) -> FALSE | I43: =I12 -> 0 | J43: =IF(I43="x",1) -> FALSE | K43: =K12 -> 0 | L43: =IF(K43="x",1) -> FALSE | M43: =M12 -> 0 | N43: =IF(M43="x",1) -> FALSE | O43: =O12 -> 0 | P43: =IF(O43="x",1) -> FALSE | Q43: =Q12 -> 0 | R43: =IF(Q43="x",1) -> FALSE
C44: =C13 -> 0 | D44: =IF(C44="x",1) -> FALSE | E44: 0 | F44: FALSE | G44: =G13 -> 0 | H44: =IF(G44="x",1) -> FALSE | I44: =I13 -> 0 | J44: FALSE | K44: =K13 -> 0 | L44: =IF(K44="x",1) -> FALSE | M44: =M13 -> 0 | N44: FALSE | O44: =O13 -> 0 | P44: =IF(O44="x",1) -> FALSE | Q44: =Q13 -> 0 | R44: FALSE
C45: 0 | D45: FALSE | E45: 0 | F45: FALSE | G45: =G14 -> 0 | H45: =IF(G45="x",1) -> FALSE | I45: =I14 -> 0 | J45: FALSE | K45: =K14 -> 0 | L45: =IF(K45="x",1) -> FALSE | M45: =M14 -> 0 | N45: FALSE | O45: =O14 -> 0 | P45: =IF(O45="x",1) -> FALSE | Q45: =Q14 -> 0 | R45: FALSE
C46: 0 | D46: FALSE | E46: 0 | F46: FALSE | G46: =G15 -> 0 | H46: =IF(G46="x",1) -> FALSE | I46: =I15 -> 0 | J46: FALSE | K46: =K15 -> 0 | L46: =IF(K46="x",1) -> FALSE | M46: =M15 -> 0 | N46: FALSE | O46: =O15 -> 0 | P46: =IF(O46="x",1) -> FALSE | Q46: =Q15 -> 0 | R46: FALSE
C47: 0 | D47: FALSE | E47: 0 | F47: FALSE | G47: =G16 -> 0 | H47: =IF(G47="x",1) -> FALSE | I47: =I16 -> 0 | J47: FALSE | K47: =K16 -> 0 | L47: =IF(K47="x",1) -> FALSE | M47: =M16 -> 0 | N47: FALSE | O47: =O16 -> 0 | P47: =IF(O47="x",1) -> FALSE | Q47: =Q16 -> 0 | R47: FALSE
C48: x | D48: 1 | E48: 0 | F48: FALSE | G48: =G17 -> x | H48: =IF(G48="x",1) -> 1 | I48: =I17 -> 0 | J48: FALSE | K48: =K17 -> 0 | L48: =IF(K48="x",1) -> FALSE | M48: =M17 -> 0 | N48: FALSE | O48: =O17 -> 0 | P48: =IF(O48="x",1) -> FALSE | Q48: =Q17 -> 0 | R48: FALSE
C49: 0 | D49: FALSE | E49: 0 | F49: FALSE | G49: =G18 -> 0 | H49: =IF(G49="x",1) -> FALSE | I49: =I18 -> 0 | J49: FALSE | K49: =K18 -> 0 | L49: =IF(K49="x",1) -> FALSE | M49: =M18 -> 0 | N49: FALSE | O49: =O18 -> 0 | P49: =IF(O49="x",1) -> FALSE | Q49: =Q18 -> 0 | R49: FALSE
C50: =SUM(D43:D46) -> 0 | D50: FALSE | E50: =SUM(F43:F46) -> 1 | F50: FALSE | G50: =SUM(H43:H46) -> 0 | H50: =IF(G50="x",1) -> FALSE | I50: =SUM(J43:J46) -> 0 | J50: FALSE | K50: =SUM(L43:L46) -> 0 | L50: =IF(K50="x",1) -> FALSE | M50: =SUM(N43:N46) -> 0 | N50: FALSE | O50: =SUM(P43:P46) -> 0 | P50: =IF(O50="x",1) -> FALSE | Q50: =SUM(R43:R46) -> 0 | R50: FALSE
C51: =SUM(D47:D49) -> 1 | D51: FALSE | E51: =SUM(F47:F49) -> 0 | F51: FALSE | G51: =SUM(H47:H49) -> 1 | H51: =IF(G51="x",1) -> FALSE | I51: =SUM(J47:J49) -> 0 | J51: FALSE | K51: =SUM(L47:L49) -> 0 | L51: =IF(K51="x",1) -> FALSE | M51: =SUM(N47:N49) -> 0 | N51: FALSE | O51: =SUM(P47:P49) -> 0 | P51: =IF(O51="x",1) -> FALSE | Q51: =SUM(R47:R49) -> 0 | R51: FALSE

Sheet 4.Vähimmäisetäisyystaul
B2: Liite 1
B4: Eläinsuojien vähimmäisetäisyystaulukot
B6: Taulukko 1. Nautojen eläinsuojat ja lannan varastointitilat
B8: Eläin-yksikkö-määrä | C8: Eläinsuojan ja lannanvarastointitilan etäisyysvaatimukset metriä varastointitilojen kattamismenetelmään tai lannan käsittelymenetelmän mukaan
C9: Lietelantalat kuorettumalla | D9: Lietelantalat kuorettumalla ja käytössä lantakanavien jäähdytys | E9: Lietelantaloissa kelluva tai telttamainen kate tai katto ja seinät | F9: Lietelantaloissa kelluva tai telttamainen kate tai katto ja seinät sekä käytössä lantakanavien jäähdytys | G9: Lietelantalassa tiivis kate, esimerkiksi betonikansi | H9: Kuivikelanta, kuivikepohja tai kuivalanta, jossa virtsa eroteltuna,lantaloissa katto
B10: ='2.Ympäristöluvan tarpeen lasken'!E12 -> 1616
B11: 540–809 | C11: 150 | D11: 100 | E11: 100 | F11: 100 | G11: 100 | H11: 100
B12: 810–989 | C12: 200 | D12: 150 | E12: 150 | F12: 100 | G12: 100 | H12: 150
B13: 990–1 099 | C13: 250 | D13: 200 | E13: 150 | F13: 100 | G13: 100 | H13: 150
B14: 1 100–1 649 | C14: 300 | D14: 250 | E14: 200 | F14: 150 | G14: 100 | H14: 200
B15: 1 650–2 089 | C15: 350 | D15: 300 | E15: 250 | F15: 200 | G15: 150 | H15: 250
B16: 2 090–2 475 | C16: 400 | D16: 350 | E16: 250 | F16: 200 | G16: 150 | H16: 300
B17: 2 476–3 024 | C17: 450 | D17: 400 | E17: 300 | F17: 250 | G17: 150 | H17: 350
B18: 3 025–3 229 | C18: 500 | D18: 450 | E18: 350 | F18: 250 | G18: 200 | H18: 400
B20: Lypsylehmien soveltamisalan rajat (50–299 lypsylehmää) ovat 540–3 229 eläinyksikköä.
B22: Emolehmien soveltamisalan rajat (130–599 emolehmää) ovat 559–2 576 eläinyksikköä.
B24: Lihanautojen soveltamisalan rajat (100–499 lihanautaa) ovat 570–2 844 eläinyksikköä.

Sheet 5.Peltoalan tarpeen laskenta
B3: ='2.Ympäristöluvan tarpeen lasken'!B3 -> 0 | C3: ='2.Ympäristöluvan tarpeen lasken'!C3 -> 0 | D3: ='2.Ympäristöluvan tarpeen lasken'!D3 -> 0 | E3: ='2.Ympäristöluvan tarpeen lasken'!E3 -> 0
B4: ='2.Ympäristöluvan tarpeen lasken'!B4 -> 0 | C4: ='2.Ympäristöluvan tarpeen lasken'!C4 -> 0 | D4: ='2.Ympäristöluvan tarpeen lasken'!D4 -> 0 | E4: ='2.Ympäristöluvan tarpeen lasken'!E4 -> 0
C5: ='2.Ympäristöluvan tarpeen lasken'!C5 -> 0 | D5: ='2.Ympäristöluvan tarpeen lasken'!D5 -> 0 | E5: ='2.Ympäristöluvan tarpeen lasken'!E5 -> 0
C6: ='2.Ympäristöluvan tarpeen lasken'!C6 -> 0 | D6: ='2.Ympäristöluvan tarpeen lasken'!D6 -> 0 | E6: ='2.Ympäristöluvan tarpeen lasken'!E6 -> 0
C7: ='2.Ympäristöluvan tarpeen lasken'!C7 -> 0 | D7: ='2.Ympäristöluvan tarpeen lasken'!D7 -> 0 | E7: ='2.Ympäristöluvan tarpeen lasken'!E7 -> 0
B8: ='2.Ympäristöluvan tarpeen lasken'!B8 -> 0 | C8: Laskuri pyöristää ylöspäin !!!
B9: ='2.Ympäristöluvan tarpeen lasken'!B9 -> Viljelijä | C9: ='2.Ympäristöluvan tarpeen lasken'!C9 -> 0 | D9: ='2.Ympäristöluvan tarpeen lasken'!D9 -> 0 | E9: ='2.Ympäristöluvan tarpeen lasken'!E9 -> 0
B10: ='2.Ympäristöluvan tarpeen lasken'!B10:E10 -> PJ Soronen Oy
B11: ='2.Ympäristöluvan tarpeen lasken'!B11 -> 0 | C11: ='2.Ympäristöluvan tarpeen lasken'!C11 -> 0 | D11: ='2.Ympäristöluvan tarpeen lasken'!D11 -> 0 | E11: ='2.Ympäristöluvan tarpeen lasken'!E11 -> 0
B12: Peltoalan tarve lannan levitykseen, ha | C12: ='2.Ympäristöluvan tarpeen lasken'!C12 -> 0 | D12: ='2.Ympäristöluvan tarpeen lasken'!D12 -> 0 | E12: =E23+E30+E42+E54+E63 -> 116
B13: ='2.Ympäristöluvan tarpeen lasken'!B13 -> 0 | C13: ='2.Ympäristöluvan tarpeen lasken'!C13 -> 0 | D13: ='2.Ympäristöluvan tarpeen lasken'!D13 -> 0 | E13: ='2.Ympäristöluvan tarpeen lasken'!E13 -> 0
B14: ='2.Ympäristöluvan tarpeen lasken'!B14 -> Eläinlaji | C14: ='2.Ympäristöluvan tarpeen lasken'!C14 -> kpl | D14: ='2.Ympäristöluvan tarpeen lasken'!D14 -> kerroin | E14: ha
B15: ='2.Ympäristöluvan tarpeen lasken'!B15 -> Lypsylehmä | C15: ='2.Ympäristöluvan tarpeen lasken'!C15 -> 120 | D15: 1.3 | E15: =CEILING(C15/D15,1) -> 93
B16: ='2.Ympäristöluvan tarpeen lasken'!B16 -> Emolehmä | C16: ='2.Ympäristöluvan tarpeen lasken'!C16 -> 0 | D16: 2.5 | E16: =CEILING(C16/D16,1) -> 0
B17: ='2.Ympäristöluvan tarpeen lasken'!B17 -> Siitossonni (sonni > 2 v) | C17: ='2.Ympäristöluvan tarpeen lasken'!C17 -> 0 | D17: 2.5 | E17: 0
B18: ='2.Ympäristöluvan tarpeen lasken'!B18 -> Hieho (12–24 kk) | C18: ='2.Ympäristöluvan tarpeen lasken'!C18 -> 46 | D18: 3.5 | E18: 14
B19: ='2.Ympäristöluvan tarpeen lasken'!B19 -> Lihanauta (sonni 12–24 kk) | C19: ='2.Ympäristöluvan tarpeen lasken'!C19 -> 0 | D19: 2.7 | E19: =CEILING(C19/D19,1) -> 0
B20: ='2.Ympäristöluvan tarpeen lasken'!B20 -> Lehmävasikka 6–12 kk | C20: ='2.Ympäristöluvan tarpeen lasken'!C20 -> 24 | D20: 4.5 | E20: 6
B21: ='2.Ympäristöluvan tarpeen lasken'!B21 -> Sonnivasikka 6–12 kk | C21: ='2.Ympäristöluvan tarpeen lasken'!C21 -> 0 | D21: 3.5 | E21: 0
B22: ='2.Ympäristöluvan tarpeen lasken'!B22 -> Lehmävasikka < 6 kk, sonnivasikka < 6kk | C22: ='2.Ympäristöluvan tarpeen lasken'!C22 -> 32 | D22: 11 | E22: 3
B23: Tarvittava lannan levitykseen soveltuva peltoala | C23: ='2.Ympäristöluvan tarpeen lasken'!C23 -> 0 | D23: ='2.Ympäristöluvan tarpeen lasken'!D23 -> 0 | E23: =SUM(E15:E22) -> 116
B25: ='2.Ympäristöluvan tarpeen lasken'!B25 -> Hevonen yli 2 v | C25: ='2.Ympäristöluvan tarpeen lasken'!C25 -> 0 | D25: ='2.Ympäristöluvan tarpeen lasken'!D25 -> 3.9 | E25: =CEILING(C25/D25,1) -> 0
B26: ='2.Ympäristöluvan tarpeen lasken'!B26 -> Poni yli 2 v, hevonen 1-2 v (Poni aikuisena 120-140 cm) | C26: ='2.Ympäristöluvan tarpeen lasken'!C26 -> 0 | D26: ='2.Ympäristöluvan tarpeen lasken'!D26 -> 2.8 | E26: 0
B27: ='2.Ympäristöluvan tarpeen lasken'!B27 -> Pienponi yli 2 v, poni 1-2 v, hevonen alle 1 v (pienponi: eläimen säkäkorkeus täysikasvuisena <120 cm) | C27: ='2.Ympäristöluvan tarpeen lasken'!C27 -> 0 | D27: ='2.Ympäristöluvan tarpeen lasken'!D27 -> 2 | E27: 0
B28: ='2.Ympäristöluvan tarpeen lasken'!B28 -> Pienponi 1-2 v, poni alle 1v (pienponi: eläimen säkäkorkeus täysikasvuisena <120 cm) | C28: ='2.Ympäristöluvan tarpeen lasken'!C28 -> 0 | D28: ='2.Ympäristöluvan tarpeen lasken'!D28 -> 1.2 | E28: 0
B29: ='2.Ympäristöluvan tarpeen lasken'!B29 -> Pienponi alle 1 v (pienponi: eläimen säkäkorkeus täysikasvuisena <120 cm) | C29: ='2.Ympäristöluvan tarpeen lasken'!C29 -> 0 | D29: ='2.Ympäristöluvan tarpeen lasken'!D29 -> 0.8 | E29: 0
B30: Tarvittava lannan levitykseen soveltuva peltoala | C30: ='2.Ympäristöluvan tarpeen lasken'!C30 -> 0 | D30: ='2.Ympäristöluvan tarpeen lasken'!D30 -> 0 | E30: =SUM(E25:E29) -> 0
B31: ='2.Ympäristöluvan tarpeen lasken'!B31 -> Lammas ja karitsat sekä pässi | C31: ='2.Ympäristöluvan tarpeen lasken'!C31 -> 0 | D31: ='2.Ympäristöluvan tarpeen lasken'!D31 -> 1.3 | E31: ='2.Ympäristöluvan tarpeen lasken'!E31 -> 0
B32: ='2.Ympäristöluvan tarpeen lasken'!B32 -> Vuohi ja kilit sekä pukki | C32: ='2.Ympäristöluvan tarpeen lasken'!C32 -> 0 | D32: ='2.Ympäristöluvan tarpeen lasken'!D32 -> 1.3 | E32: ='2.Ympäristöluvan tarpeen lasken'!E32 -> 0
B33: ='2.Ympäristöluvan tarpeen lasken'!B33 -> Karitsat ja kilit 3-9 kk (Kasvatuksessa, kaksi kasvatuserää vuodessa), sis. yllä oleviin lukuihin | C33: ='2.Ympäristöluvan tarpeen lasken'!C33 -> 0 | D33: ='2.Ympäristöluvan tarpeen lasken'!D33 -> 0 | E33: ='2.Ympäristöluvan tarpeen lasken'!E33 -> 0
B34: ='2.Ympäristöluvan tarpeen lasken'!B34 -> Karitsat ja kilit 6-9 kk (Kasvatuksessa, kaksi kasvatuserää vuodessa), sis. yllä oleviin lukuihin | C34: ='2.Ympäristöluvan tarpeen lasken'!C34 -> 0 | D34: ='2.Ympäristöluvan tarpeen lasken'!D34 -> 0 | E34: ='2.Ympäristöluvan tarpeen lasken'!E34 -> 0
B35: ='2.Ympäristöluvan tarpeen lasken'!B35 -> (yht yli 150 - lupa kunnalta) | C35: ='2.Ympäristöluvan tarpeen lasken'!C35 -> 0 | D35: ='2.Ympäristöluvan tarpeen lasken'!D35 -> 0 | E35: ='2.Ympäristöluvan tarpeen lasken'!E35 -> 0
B36: ='2.Ympäristöluvan tarpeen lasken'!B36 -> Lihasika (eläinpaikkaa kohti, teuraspaino max 90 kg, jos suurempi käytetään jotilaan emakon arvoja) | C36: ='2.Ympäristöluvan tarpeen lasken'!C36 -> 0 | D36: ='2.Ympäristöluvan tarpeen lasken'!D36 -> 1 | E36: ='2.Ympäristöluvan tarpeen lasken'!E36 -> 0
B37: ='2.Ympäristöluvan tarpeen lasken'!B37 -> Emakko ja porsaat (Normaali emakkosikala. Porsaat mukana noin 11 viikon ikään asti) | C37: ='2.Ympäristöluvan tarpeen lasken'!C37 -> 0 | D37: ='2.Ympäristöluvan tarpeen lasken'!D37 -> 2.6 | E37: ='2.Ympäristöluvan tarpeen lasken'!E37 -> 0
B38: ='2.Ympäristöluvan tarpeen lasken'!B38 -> Emakko ja porsaat satelliittisikalassa (Koskee satelliittisikalaa. Lantamäärät emakkopaikkaa kohti, kun emakkopaikassa vähintään kahdeksan porsituskertaa vuodessa. Porsaat huomioidaan noin viiden viikon vieroitusikään asti) | C38: ='2.Ympäristöluvan tarpeen lasken'!C38 -> 0 | D38: ='2.Ympäristöluvan tarpeen lasken'!D38 -> 2.6 | E38: ='2.Ympäristöluvan tarpeen lasken'!E38 -> 0
B39: ='2.Ympäristöluvan tarpeen lasken'!B39 -> Joutilas emakko | C39: ='2.Ympäristöluvan tarpeen lasken'!C39 -> 0 | D39: ='2.Ympäristöluvan tarpeen lasken'!D39 -> 1.8 | E39: ='2.Ympäristöluvan tarpeen lasken'!E39 -> 0
B40: ='2.Ympäristöluvan tarpeen lasken'!B40 -> Vierotettu porsas (Porsas välikasvatuksessa, ikävaihe 5-11 vkoa) | C40: ='2.Ympäristöluvan tarpeen lasken'!C40 -> 0 | D40: ='2.Ympäristöluvan tarpeen lasken'!D40 -> 0.24 | E40: ='2.Ympäristöluvan tarpeen lasken'!E40 -> 0
B41: ='2.Ympäristöluvan tarpeen lasken'!B41 -> Karju (täysikasvuinen) | C41: ='2.Ympäristöluvan tarpeen lasken'!C41 -> 0 | D41: ='2.Ympäristöluvan tarpeen lasken'!D41 -> 1.8 | E41: ='2.Ympäristöluvan tarpeen lasken'!E41 -> 0
B42: Tarvittava lannan levitykseen soveltuva peltoala | C42: ='2.Ympäristöluvan tarpeen lasken'!C42 -> 0 | D42: ='2.Ympäristöluvan tarpeen lasken'!D42 -> 0 | E42: =SUM(E34:E41) -> 0
B43: ='2.Ympäristöluvan tarpeen lasken'!B43 -> Broileri (Eläinpaikkaa kohti) | C43: ='2.Ympäristöluvan tarpeen lasken'!C43 -> 0 | D43: ='2.Ympäristöluvan tarpeen lasken'!D43 -> 0.03 | E43: ='2.Ympäristöluvan tarpeen lasken'!E43 -> 0
B44: ='2.Ympäristöluvan tarpeen lasken'!B44 -> Munituskana | C44: ='2.Ympäristöluvan tarpeen lasken'!C44 -> 0 | D44: ='2.Ympäristöluvan tarpeen lasken'!D44 -> 0.07 | E44: ='2.Ympäristöluvan tarpeen lasken'!E44 -> 0
B45: ='2.Ympäristöluvan tarpeen lasken'!B45 -> Broileriemo | C45: ='2.Ympäristöluvan tarpeen lasken'!C45 -> 0 | D45: ='2.Ympäristöluvan tarpeen lasken'!D45 -> 0.07 | E45: ='2.Ympäristöluvan tarpeen lasken'!E45 -> 0
B46: ='2.Ympäristöluvan tarpeen lasken'!B46 -> Kukko | C46: ='2.Ympäristöluvan tarpeen lasken'!C46 -> 0 | D46: ='2.Ympäristöluvan tarpeen lasken'!D46 -> 0.1 | E46: ='2.Ympäristöluvan tarpeen lasken'!E46 -> 0
B47: ='2.Ympäristöluvan tarpeen lasken'!B47 -> Emokalkkuna | C47: ='2.Ympäristöluvan tarpeen lasken'!C47 -> 0 | D47: ='2.Ympäristöluvan tarpeen lasken'!D47 -> 0.14 | E47: ='2.Ympäristöluvan tarpeen lasken'!E47 -> 0
B48: ='2.Ympäristöluvan tarpeen lasken'!B48 -> Lihakalkkuna | C48: ='2.Ympäristöluvan tarpeen lasken'!C48 -> 0 | D48: ='2.Ympäristöluvan tarpeen lasken'!D48 -> 0.12 | E48: ='2.Ympäristöluvan tarpeen lasken'!E48 -> 0
B49: ='2.Ympäristöluvan tarpeen lasken'!B49 -> Kananuorikko | C49: ='2.Ympäristöluvan tarpeen lasken'!C49 -> 0 | D49: ='2.Ympäristöluvan tarpeen lasken'!D49 -> 0.04 | E49: ='2.Ympäristöluvan tarpeen lasken'!E49 -> 0
B50: ='2.Ympäristöluvan tarpeen lasken'!B50 -> Emoankka, liha-ankka, emohanhi, emofasaani, lihafasaani | C50: ='2.Ympäristöluvan tarpeen lasken'!C50 -> 0 | D50: ='2.Ympäristöluvan tarpeen lasken'!D50 -> 0.07 | E50: ='2.Ympäristöluvan tarpeen lasken'!E50 -> 0
B51: ='2.Ympäristöluvan tarpeen lasken'!B51 -> Emosorsa, lihasorsa | C51: ='2.Ympäristöluvan tarpeen lasken'!C51 -> 0 | D51: ='2.Ympäristöluvan tarpeen lasken'!D51 -> 0.06 | E51: ='2.Ympäristöluvan tarpeen lasken'!E51 -> 0
B52: ='2.Ympäristöluvan tarpeen lasken'!B52 -> Viiriäinen, helmikana | C52: ='2.Ympäristöluvan tarpeen lasken'!C52 -> 0 | D52: ='2.Ympäristöluvan tarpeen lasken'!D52 -> 0.04 | E52: ='2.Ympäristöluvan tarpeen lasken'!E52 -> 0
B53: ='2.Ympäristöluvan tarpeen lasken'!B53 -> Strutsi | C53: ='2.Ympäristöluvan tarpeen lasken'!C53 -> 0 | D53: ='2.Ympäristöluvan tarpeen lasken'!D53 -> 0.9 | E53: ='2.Ympäristöluvan tarpeen lasken'!E53 -> 0
B54: Tarvittava lannan levitykseen soveltuva peltoala | C54: ='2.Ympäristöluvan tarpeen lasken'!C54 -> 0 | D54: ='2.Ympäristöluvan tarpeen lasken'!D54 -> 0 | E54: =SUM(E46:E53) -> 0
B55: ='2.Ympäristöluvan tarpeen lasken'!B55 -> Kaninaaras poikasineen (Kaninaaraan elopaino noin 5 kg. Poikasien lisäksi kaniuros sisältyy naaraan eläinyksikkökertoimeen) | C55: ='2.Ympäristöluvan tarpeen lasken'!C55 -> 0 | D55: ='2.Ympäristöluvan tarpeen lasken'!D55 -> 0.19 | E55: ='2.Ympäristöluvan tarpeen lasken'!E55 -> 0
B56: ='2.Ympäristöluvan tarpeen lasken'!B56 -> Biisoni | C56: ='2.Ympäristöluvan tarpeen lasken'!C56 -> 0 | D56: ='2.Ympäristöluvan tarpeen lasken'!D56 -> 2.5 | E56: ='2.Ympäristöluvan tarpeen lasken'!E56 -> 0
B57: ='2.Ympäristöluvan tarpeen lasken'!B57 -> Villisika | C57: ='2.Ympäristöluvan tarpeen lasken'!C57 -> 0 | D57: ='2.Ympäristöluvan tarpeen lasken'!D57 -> 0.9 | E57: ='2.Ympäristöluvan tarpeen lasken'!E57 -> 0
B58: ='2.Ympäristöluvan tarpeen lasken'!B58 -> Minkki ja hilleri, pentu | C58: ='2.Ympäristöluvan tarpeen lasken'!C58 -> 0 | D58: ='2.Ympäristöluvan tarpeen lasken'!D58 -> 0 | E58: ='2.Ympäristöluvan tarpeen lasken'!E58 -> 0
B59: ='2.Ympäristöluvan tarpeen lasken'!B59 -> Minkki ja hilleri, siitosuros | C59: ='2.Ympäristöluvan tarpeen lasken'!C59 -> 0 | D59: ='2.Ympäristöluvan tarpeen lasken'!D59 -> 0 | E59: ='2.Ympäristöluvan tarpeen lasken'!E59 -> 0
B60: ='2.Ympäristöluvan tarpeen lasken'!B60 -> Kettu ja supikoira, siitosnaaras pentuineen | C60: ='2.Ympäristöluvan tarpeen lasken'!C60 -> 0 | D60: ='2.Ympäristöluvan tarpeen lasken'!D60 -> 0.41 | E60: ='2.Ympäristöluvan tarpeen lasken'!E60 -> 0
B61: ='2.Ympäristöluvan tarpeen lasken'!B61 -> Kettu ja supikoira, pentu | C61: ='2.Ympäristöluvan tarpeen lasken'!C61 -> 0 | D61: ='2.Ympäristöluvan tarpeen lasken'!D61 -> 0 | E61: ='2.Ympäristöluvan tarpeen lasken'!E61 -> 0
B62: ='2.Ympäristöluvan tarpeen lasken'!B62 -> Kettu ja supikoira, siitosuroa | C62: ='2.Ympäristöluvan tarpeen lasken'!C62 -> 0 | D62: ='2.Ympäristöluvan tarpeen lasken'!D62 -> 0 | E62: ='2.Ympäristöluvan tarpeen lasken'!E62 -> 0
B63: Tarvittava lannan levitykseen soveltuva peltoala | C63: ='2.Ympäristöluvan tarpeen lasken'!C63 -> 0 | D63: ='2.Ympäristöluvan tarpeen lasken'!D63 -> 0 | E63: =SUM(E55:E62) -> 0

Sheet 6.Lantavarastojen mitoitus
B1: Lantavarastojen mitoitus
B2: Viljelijä | C2: ='2.Ympäristöluvan tarpeen lasken'!$B$10 -> PJ Soronen Oy
B3: Naudat | F3: =ROUNDUP(F25,-1) -> 3120 | G3: =IF(F3>0,"m3",0) -> m3 | I3: 323 | J3: =IF(I3>0,"yksikköä",0) -> yksikköä | L3: =ROUNDUP(L25,-2) -> 0 | M3: =IF(L3>0,"yksikköä",0) -> 0
B4: Hevoset | G4: =IF(F4>0,"yksikköä",0) -> 0 | I4: =ROUNDUP(I33,-2) -> 0 | J4: =IF(I4>0,"yksikköä",0) -> 0 | M4: =IF(L4>0,"yksikköä",0) -> 0
B5: Lampaat ja vuohet | G5: 0 | I5: =ROUNDUP(I67,-2) -> 0 | J5: 0 | M5: 0
B6: Siat | F6: =F47 -> 0 | G6: 0 | I6: =I47 -> 0 | J6: 0 | L6: =ROUNDUP(L47,-2) -> 0 | M6: 0
B7: Kanat ja muut linnut | G7: 0 | I7: =I60 -> 0 | J7: 0 | M7: 0
B8: Alkuperäisrodut | I8: =ROUNDUP(I70,-2) -> 0
B9: Pesuvedet m3, arvio | F9: 400 | G9: =IF(F16>0,"m3",0) -> m3
B10: Sadevedet, arvio | F10: 272 | G10: =IF(F16>0,"m3",0) -> m3
B11: Tarvittava varastotilavuus m3/m2 | F11: =SUM(F3:F8,F9,F10) -> 3792 | G11: =IF(F16>0,"m3",0) -> m3 | I11: =ROUNDUP(SUM(I3:I8,I9,I10)/1.5,-2) -> 300 | L11: =ROUNDUP(SUM(L3:L8,L9,L10)/1.5,-2) -> 0 | N11: =SUM(N3:N8,N9,N10) -> 0
B12: Olemassa oleva varastotilavuus, m3/m2 | F12: 4100 | G12: =IF(F16>0,"m3",0) -> m3 | I12: 230 | N12: =IF(N16>0,'3.Lietesäiliöt'!D33,0) -> 0
B13: Lisärakentamistarve, m3/m2 | E13: =IF(F11-F12<=0,"Ei lisärakentamistarvetta",F11-F12) -> Ei lisärakentamistarvetta | G13: =IF(F16>0,"m3",0) -> m3 | I13: =I11-I12 -> 70 | J13: m2 | L13: =L11-L12 -> 0 | M13: m2 | N13: =N11-N12 -> 0
E14: Lietelanta | H14: Kuivikelanta, kuivikepohjalanta | K14: Kuivalanta | M14: Virtsa
B15: Eläinlaji | C15: kpl | E15: Lantamäärä | F15: m3 | H15: Lantamäärä | I15: m3 | K15: Lantamäärä | L15: m3 | M15: Lantamäärä | N15: m3
B16: Lypsylehmä (8500 kg) 120 yhteensä, 110 lietelannalla, 10 kuivikepohjalla | C16: 110 | D16: 2 | E16: 25.5 | F16: =IF(D16=2,C16*E16,0) -> 2805 | H16: 28.6 | I16: 286 | K16: 15.8 | L16: =IF(D16=4,C16*K16,0) -> 0 | M16: 8.7 | N16: =IF(D16=4,C16*M16,0) -> 0
B17: Emolehmä | C17: ='2.Ympäristöluvan tarpeen lasken'!C16 -> 0 | D17: 1 | E17: 19 | F17: =IF(D17=2,C17*E17,0) -> 0 | H17: 20.4 | I17: =IF(D17=3,C17*H17,0) -> 0 | K17: 16.9 | L17: 0 | M17: 1.9 | N17: 0
B18: Siitossonni (sonni > 2 v) | C18: ='2.Ympäristöluvan tarpeen lasken'!C17 -> 0 | D18: 2 | E18: 25.5 | F18: 0 | H18: 12.9 | I18: 0 | K18: 10.1 | L18: 0 | M18: 1.7 | N18: 0
B19: Hieho (12–24 kk)16 vanhassa navetassa, 20 ulkokasvatuksessa, 10 kylmäpihatossa kuivikepohjalla | C19: ='2.Ympäristöluvan tarpeen lasken'!C18 -> 46 | D19: 3 | E19: 8.5 | F19: =16*8.5 -> 136 | H19: 13.4 | I19: =10*H19 -> 134 | K19: 6.6 | L19: 0 | M19: 2.9 | N19: 0
B20: Lihanauta (sonni 12–24 kk) | D20: 2 | E20: 12.1 | F20: 0 | H20: 12.9 | I20: 0 | K20: 10.1 | L20: 0 | M20: 1.7 | N20: 0
B21: Lehmävasikka 6–12 kk | C21: ='2.Ympäristöluvan tarpeen lasken'!C20 -> 24 | D21: 2 | E21: 7.2 | F21: 172.8 | H21: 9.7 | I21: 0 | K21: 6.1 | L21: 0 | M21: 1.7 | N21: 0
B22: Sonnivasikka 6–12 kk | D22: 2 | E22: 9.5 | F22: 0 | H22: 12.1 | I22: 0 | K22: 8 | L22: =IF(D22=4,C22*K22,0) -> 0 | M22: 2.1 | N22: =IF(D22=4,C22*M22,0) -> 0
B23: Lehmävasikka < 6 kk 16 kpl kuivikepohjalla, 16 kpl lietelannalla | C23: 32 | D23: 3 | E23: 3.6 | F23: =16*3.6 -> 57.6 | H23: 6.1 | I23: =16*6.1 -> 97.6 | K23: 3.1 | L23: 0 | M23: 1.1 | N23: 0
B24: Sonnivasikka < 6 kk | C24: 0 | D24: 1 | E24: 3.6 | F24: 0 | H24: 7.1 | I24: =IF(D24=3,C24*H24,0) -> 0 | K24: 4 | L24: 0 | M24: 1.3 | N24: 0
B25: Tarvittava lannan varastointi tilavuus | F25: =SUM(F16:F22) -> 3113.8 | I25: =SUM(I16:I24) -> 517.6 | L25: =SUM(L16:L24) -> 0 | N25: =SUM(N16:N24) -> 0
B28: Hevonen yli 2 v | C28: ='2.Ympäristöluvan tarpeen lasken'!C25 -> 0 | D28: 3 | F28: =IF(D28=2,0,0) -> 0 | H28: 17 | I28: =IF(D28=3,C28*H28,0) -> 0
B29: Poni yli 2 v, hevonen 1-2 v (Poni aikuisena 120-140 cm) | C29: ='2.Ympäristöluvan tarpeen lasken'!C26 -> 0 | D29: 3 | F29: =IF(D29=2,C29*E29,0) -> 0 | H29: 12 | I29: =IF(D29=3,C29*H29,0) -> 0
B30: Pienponi yli 2 v, poni 1-2 v, hevonen alle 1 v (pienponi: eläimen säkäkorkeus täysikasvuisena <120 cm) | C30: ='2.Ympäristöluvan tarpeen lasken'!C27 -> 0 | D30: 3 | F30: 0 | H30: 8 | I30: 0
B31: Pienponi 1-2 v, poni alle 1v (pienponi: eläimen säkäkorkeus täysikasvuisena <120 cm) | C31: ='2.Ympäristöluvan tarpeen lasken'!C28 -> 0 | D31: 3 | F31: 0 | H31: 8 | I31: 0
B32: Pienponi alle 1 v (pienponi: eläimen säkäkorkeus täysikasvuisena <120 cm) | C32: ='2.Ympäristöluvan tarpeen lasken'!C29 -> 0 | D32: 3 | F32: 0 | H32: 8 | I32: 0
B33: Tarvittava lannan varastointi tilavuus | I33: =SUM(I28:I32) -> 0 | N33: =N68 -> 0
B35: ='2.Ympäristöluvan tarpeen lasken'!B31 -> Lammas ja karitsat sekä pässi | C35: ='2.Ympäristöluvan tarpeen lasken'!C31 -> 0 | D35: 3 | F35: =IF(D35=2,C35*E35,0) -> 0 | H35: 1.3 | I35: =IF(D35=3,C35*H35,0) -> 0
B36: ='2.Ympäristöluvan tarpeen lasken'!B32 -> Vuohi ja kilit sekä pukki | C36: ='2.Ympäristöluvan tarpeen lasken'!C32 -> 0 | D36: 3 | F36: 0 | H36: 1.3 | I36: 0
B37: ='2.Ympäristöluvan tarpeen lasken'!B33 -> Karitsat ja kilit 3-9 kk (Kasvatuksessa, kaksi kasvatuserää vuodessa), sis. yllä oleviin lukuihin | C37: ='2.Ympäristöluvan tarpeen lasken'!C33 -> 0 | D37: 3 | F37: 0 | H37: 1.3 | I37: 0
B38: ='2.Ympäristöluvan tarpeen lasken'!B34 -> Karitsat ja kilit 6-9 kk (Kasvatuksessa, kaksi kasvatuserää vuodessa), sis. yllä oleviin lukuihin | C38: ='2.Ympäristöluvan tarpeen lasken'!C34 -> 0 | D38: 3 | F38: 0 | H38: 0.6 | I38: 0
B39: Tarvittava lannan varastointi tilavuus | F39: =SUM(F35:F36) -> 0 | I39: =SUM(I35:I38) -> 0
B41: Lihasika | C41: ='2.Ympäristöluvan tarpeen lasken'!C36 -> 0 | D41: 1 | E41: 2.4 | F41: =IF(D41=2,C41*E41,0) -> 0 | H41: 3 | I41: =IF(D41=3,C41*H41,0) -> 0 | K41: 1 | L41: =IF(D41=4,C41*K41,0) -> 0 | M41: 1.6 | N41: =IF(D41=4,C41*M41,0) -> 0
B42: Emakko porsaineen, normaali emakkosikala | C42: ='2.Ympäristöluvan tarpeen lasken'!C37 -> 0 | D42: 1 | E42: 9.3 | F42: 0 | H42: 10.7 | I42: =IF(D42=3,C42*H42,0) -> 0 | K42: 2.2 | L42: 0 | M42: 6.8 | N42: 0
B43: Emakko porsaineen, satelliittisikala | C43: ='2.Ympäristöluvan tarpeen lasken'!C38 -> 0 | D43: 1 | E43: 12.7 | F43: 0 | H43: 15.5 | I43: 0 | K43: 3.5 | L43: 0 | M43: 10.4 | N43: 0
B44: Joutilas emakko | C44: ='2.Ympäristöluvan tarpeen lasken'!C39 -> 0 | D44: 1 | E44: 3.9 | F44: 0 | H44: 4.9 | I44: 0 | K44: 1.6 | L44: 0 | M44: 2.7 | N44: 0
B45: Vierotettu porsas * 5-11 vk, jos tilalla ei emakoita | C45: ='2.Ympäristöluvan tarpeen lasken'!C40 -> 0 | D45: 1 | E45: 1.2 | F45: 0 | H45: 1.6 | I45: 0 | K45: 0.6 | L45: 0 | M45: 0.8 | N45: 0
B46: Karju (täysikasvuinen) | C46: ='2.Ympäristöluvan tarpeen lasken'!C41 -> 0 | D46: 1 | E46: 4.9 | F46: 0 | H46: 6.1 | I46: 0 | K46: 1.8 | L46: 0 | M46: 3.5 | N46: 0
B47: Tarvittava lannan varastointi tilavuus | F47: =SUM(F41:F46) -> 0 | I47: =SUM(I41:I46) -> 0 | L47: =SUM(L41:L46) -> 0 | N47: =SUM(N41:N46) -> 0
B49: Broileri (Eläinpaikkaa kohti) | C49: ='2.Ympäristöluvan tarpeen lasken'!C43 -> 0 | D49: 3 | F49: =C49*E49 -> 0 | H49: 0.015 | I49: =IF(D49=3,C49*H49,0) -> 0
B50: Munituskana | C50: ='2.Ympäristöluvan tarpeen lasken'!C44 -> 0 | D50: 3 | F50: =C50*E50 -> 0 | H50: 0.04 | I50: 0
B51: Broileriemo | C51: ='2.Ympäristöluvan tarpeen lasken'!C45 -> 0 | D51: 3 | F51: =C51*E51 -> 0 | H51: 0.06 | I51: 0
B52: Kukko | C52: ='2.Ympäristöluvan tarpeen lasken'!C46 -> 0 | D52: 3 | H52: 0.04 | I52: 0
B53: Emokalkkuna | C53: ='2.Ympäristöluvan tarpeen lasken'!C47 -> 0 | D53: 3 | H53: 0.06 | I53: 0
B54: Lihakalkkuna | C54: ='2.Ympäristöluvan tarpeen lasken'!C48 -> 0 | D54: 3 | H54: 0.06 | I54: 0
B55: Kananuorikko | C55: ='2.Ympäristöluvan tarpeen lasken'!C49 -> 0 | D55: 3 | H55: 0.04 | I55: 0
B56: Emoankka, liha-ankka, emohanhi, emofasaani, lihafasaani | C56: ='2.Ympäristöluvan tarpeen lasken'!C50 -> 0 | D56: 3 | H56: 0.04 | I56: 0
B57: Emosorsa, lihasorsa | C57: ='2.Ympäristöluvan tarpeen lasken'!C51 -> 0 | D57: 3 | H57: 0.025 | I57: 0
B58: Viiriäinen, helmikana | C58: ='2.Ympäristöluvan tarpeen lasken'!C52 -> 0 | D58: 3 | I58: 0
B59: Strutsi | C59: ='2.Ympäristöluvan tarpeen lasken'!C53 -> 0 | D59: 3 | I59: 0
B60: Tarvittava lannan varastointi tilavuus | I60: =SUM(I49:I59) -> 0
B62: Alkuperäisrodut
B63: Lypsylehmä | D63: 3 | H63: 22.3 | I63: =IF(D63=3,C63*H63,0) -> 0
B64: Emolehmä | D64: 3 | F64: =SUM(F49:F51) -> 0 | H64: 15.9 | I64: 0
B65: Hieho | D65: 3 | H65: 11.7 | I65: 0
B66: Sonni | D66: 3 | H66: 11.9 | I66: 0
B67: Lehmävasikka 6-12 kk | D67: 3 | H67: 8.5 | I67: 0
B68: Sonnivasikka 6-12 kk | D68: 3 | H68: 9.4 | I68: 0
B69: Vasikka < 6 kk | D69: 3 | H69: 5.3 | I69: 0
B70: Tarvittava lannan varastointi tilavuus | I70: =SUM(I63:I69) -> 0
F79: =F71 -> 0
F80: =F79/3.9 -> 0
F81: =F80/3.14 -> 0
F82: =SQRT(F81) -> 0

Sheet Sade- ja pesuvesi aputaulukko
B2: Pesuvedet
E4: Pesut navettahallissa | I4: Lypsykoneen pesu
B5: Lypsylehmä (8500 kg) | C5: ='2.Ympäristöluvan tarpeen lasken'!C15 -> 120 | E5: 0.02 | F5: M3/PV | G5: =C5*E5 -> 2.4 | I5: 365 | J5: 0 | K5: 0.2 | L5: =(I5*J5)*K5 -> 0 | O5: 50 litraa vettä lypsykoneen pesuun
B6: Emolehmä | C6: ='2.Ympäristöluvan tarpeen lasken'!C16 -> 0 | E6: 0.001 | G6: =C6*E6 -> 0
B7: Siitossonni (sonni > 2 v) | C7: ='2.Ympäristöluvan tarpeen lasken'!C17 -> 0 | E7: 0.01 | G7: 0
B8: Hieho (12–24 kk) | C8: ='2.Ympäristöluvan tarpeen lasken'!C18 -> 46 | E8: 0.01 | G8: 0.46
B9: Lihanauta (sonni 12–24 kk) | C9: ='2.Ympäristöluvan tarpeen lasken'!C19 -> 0 | E9: 0.01 | G9: 0
B10: Lehmävasikka 6–12 kk | C10: ='2.Ympäristöluvan tarpeen lasken'!C20 -> 24 | E10: 0.005 | G10: 0.12
B11: Sonnivasikka 6–12 kk | C11: ='2.Ympäristöluvan tarpeen lasken'!C21 -> 0 | E11: 0.005 | G11: 0
B12: Lehmävasikka < 6 kk | C12: ='2.Ympäristöluvan tarpeen lasken'!C22 -> 32 | E12: 0.0025 | G12: 0.08
B13: Sonnivasikka < 6 kk | C13: ='2.Ympäristöluvan tarpeen lasken'!C23 -> 0 | E13: 0.005 | G13: 0
G14: =SUM(G5:G13) -> 3.06
G15: 0 | H15: 365
G16: =G14*G15 -> 0 | L16: =L5 -> 0
B17: Pesuvedet yhteensä | L17: =G16+L16 -> 0

Sheet Eläinyksikkökertoimet asetus
A2: Liite 3(19.12.2018/1166)
A4: ELÄINSUOJAN JA TURKISTARHAN LUPA- JA TOIMIVALTARAJAN SEKÄ ELÄINSUOJAN ILMOITUKSENVARAISUUSRAJAN LASKEMISESSA KÄYTETTÄVÄT ELÄINYKSIKKÖKERTOIMET
A6: Taulukko 1. Eläinsuojan ja turkistarhan kokonaiseläinyksikkömäärän laskemiseen käytettävät eläinyksikkökertoimet. Eläinsuojan kokonaiseläinyksikkömäärä saadaan kertomalla eläinsuojan eläinlajien lukumäärät niiden eläinyksikkökertoimilla ja laskemalla saadut eläinyksikkömäärät yhteen. Muiden eläinlajien kohdalla on käytettävä vuotuiselta typeneritykseltään lähinnä vastaavan eläimen eläinyksikkökerrointa.
A8: Eläin | B8: Eläinyksikkökerroin
A9: Lypsylehmä | B9: 10.8
A10: Emolehmä | B10: 4.3
A11: Hieho (12–24 kk) | B11: 4
A12: Lihanauta (sonni 12–24 kk) | B12: 5.7
A13: Siitossonni (sonni > 2 v) | B13: 8.1
A14: Vasikka 6–12 kk | B14: 3.4
A15: Vasikka < 6 kk | B15: 1.7
A16: Emakko porsaineen | B16: 2.6
A17: Lihasika* | B17: 1
A18: Karju | B18: 1.8
A19: Joutilas emakko ydinsikalassa | B19: 1.8
A20: Vieroitettu porsas, 5–11 vko, jos tilalla ei ole emakoita* | B20: 0.24
A21: Hevonen 2v– | B21: 3.9
A22: Poni** 2v–, hevonen 1v | B22: 2.8
A23: Pienponi** 2v–, poni** 1v, hevonen <1v | B23: 2
A24: Pienponi **1–2v, poni** <1v | B24: 1.2
A25: Pienponi** <1v | B25: 0.8
A26: Aasi (ponin ja pienponin tavoin säkäkorkeuden ja iän mukaan) | B26: 0,8–2,8
A27: Lammas (uuhi karitsoineen, pässi) | B27: 0.6
A28: Vuohi (kuttu kileineen, pukki) | B28: 0.6
A29: Munituskana | B29: 0.07
A30: Broileriemo | B30: 0.07
A31: Kukko | B31: 0.1
A32: Emokalkkuna | B32: 0.14
A33: Lihakalkkuna* | B33: 0.12
A34: Broileri* | B34: 0.03
A35: Kananuorikko* | B35: 0.04
A36: Emoankka, liha-ankka*, emohanhi, lihahanhi*, emofasaani, lihafasaani* | B36: 0.07
A37: Emosorsa, lihasorsa* | B37: 0.06
A38: Viiriäinen, helmikana | B38: 0.04
A39: Kaninaaras poikasineen*** | B39: 0.19
A40: Strutsi | B40: 0.9
A41: Biisoni | B41: 2.5
A42: Villisika | B42: 0.9
A43: Minkki ja hilleri, siitosnaaras pentuineen | B43: 0.18
A44: Minkki ja hilleri, pentu
A45: Minkki ja hilleri, siitosuros
A46: Kettu ja supikoira, siitosnaaras pentuineen | B46: 0.41
A47: Kettu ja supikoira, pentu
A48: Kettu ja supikoira, siitosuros
A49: * eläinpaikkaa kohti
A50: ** poni: eläimen säkäkorkeus täysikasvuisena 120–140 cm; pienponi: eläimen säkäkorkeus täysikasvuisena <120 cm
A51: *** Kaninaaraan elopaino noin 5 kg. Poikasien lisäksi kaniuros sisältyy naaraan eläinyksikkökertoimeen

Sheet Taulukot
C2: 1 | D2: - Valitse lantatyyppi -
C3: 2 | D3: Lietelanta
C4: 3 | D4: Kuivikepohjalantala
C5: 4 | D5: Kuivalanta ja virtsa
